Cogmind - Beta 10.2 @@@ ROGUE MODE // 2020.11.23 @ 11:48:12 // Halloween2020/ForbiddenLore Player: Boris Result: Destroyed by G-73 Enforcer with Phase Gun Performance ------------- Evolutions (8) 4000 Regions Visited (27) 5400 Robots Destroyed (425) 2125 Value Destroyed (21618) 21618 Prototype IDs (71) 1420 Alien Tech Used (10) 2000 Bonus (14857) 14857 TOTAL SCORE: 51420 Bonus ------- Triggered High Security 500 High Alert Combat Kills 2872 Follower Combat Kills 3140 Entered Garrisons 800 Used RIF Installer 2000 Aligned with FarCom 300 Met R17 at Cetus 500 Found Hidden Lab 3000 Hacked Protovariant 500 Met R17 at Research 2000 Scanned by Researcher 500 Pursued by Intercept 500 Friendly Fire -1755 Cogmind --------- Core Integrity 0/1450 Matter 292/300 Energy 99/100 System Corruption 6% Temperature Cool (9) Movement Core (50) Location -2/Section 7 Parts ------- > --- POWER (3) -------- (None) > --- PROPULSION (5) --- High-density Centrium Leg > --- UTILITY (13) ----- (None) > --- WEAPON (3) ------- (None) > --- INVENTORY (4) ---- Experimental Powered Armor Core Cannon Peak State ------------ > --- POWER ------------ Light Particle Reactor Quantum Reactor Light Quantum Reactor > --- PROPULSION ------- Cooled Antigrav System Combat Linear Gravjet Combat Linear Gravjet Combat Linear Gravjet Combat Linear Gravjet > --- UTILITY ---------- Advanced Cooling System Large Storage Unit Large Storage Unit Large Storage Unit High-capacity Storage Unit Experimental Energy Well Quantum Shading Machine Advanced Signal Interpreter Advanced Armor Integrity Analyzer Experimental Weapon Cycler AEGIS Remote Shield Improved Hacking Suite Deep Network Scanner > --- WEAPON ----------- Helical Railgun Sigix Broadsword > --- INVENTORY -------- Zero-point Reactor Matter Compressor Advanced Sensor Array Precision Matter Filter Advanced Transmission Jammer Centrium Medium Armor Plating Damper Plating Experimental Powered Armor Phase Armor Chronowheel Subatomic Replicator Enhanced Gamma Rifle Cooled Proton Cannon Latent Energy Streamer Enhanced Nova Cannon Potential Cannon Warp Cannon Core Cannon AWS/Gauss Mini Smartbomb Launcher Fusion Bomb Launcher Guided Remote Datajack Deploy-a-Sentry [Rating: 208] Favorites ----------- Power Improved Deuterium Engine Engine Improved Deuterium Engine Power Core Light Nuclear Core Reactor Particle Reactor Propulsion Armored Wheel Treads Centrium Heavy Treads Leg Carbon-fiber Leg Wheel Armored Wheel Hover Unit Combat Linear Gravjet Utility Large Storage Unit Device Advanced Transmission Jammer Storage Large Storage Unit Processor Improved Signal Interpreter Hackware Relay Coupler [NC] Protection Centrium Medium Armor Plating Artifact Phase Armor Weapon Gauss Rifle Energy Gun EM Shotgun Energy Cannon Warp Cannon Ballistic Gun Gauss Rifle Launcher Grenade Launcher Special Weapon Remote Datajack Slashing Weapon Ionic Axe Special Melee Weapon Advanced Datajack Build | -11 -10 -10 -10 -9 -8 -8 -7 -7 -6 -6 -6 -6 -5 -5 -5 -5 -5 -4 -4 -4 -4 -4 -3 -3 -2 -2 -2 ------- Run | Scr Mat Min Exi Min Mat Gar Fac Gar Fac Gar Fac Gar Fac Ext Cet Arc Hub Fac Was Fac Arm Lab Res Tes Res Qua Sec Slots Evolved 16 | . . . . . 4 . 2 . 2 . . . 2 . . . . 2 . . . . 2 . 2 . . Power 1 | . . . . . . . . . . . . . . . . . . . . . . . 1 . . . . Propulsion 3 | . . . . . 1 . . . 1 . . . . . . . . . . . . . 1 . . . . Utility 11 | . . . . . 2 . 2 . 1 . . . 2 . . . . 2 . . . . . . 2 . . Weapon 1 | . . . . . 1 . . . . . . . . . . . . . . . . . . . . . . Parts Attached 744 | 8 9 1 26 8 26 25 47 37 8 27 21 49 63 28 16 18 24 44 2 31 62 12 15 44 11 34 48 Power 31 | 2 1 . 2 . 1 1 2 2 . . 1 2 1 . 1 . 1 . 1 1 1 . 1 2 2 3 3 Engine 13 | 2 1 . 2 . 1 1 2 1 . . 1 1 . . . . . . . . . . . . 1 . . Core 4 | . . . . . . . . 1 . . . 1 1 . . . 1 . . . . . . . . . . Reactor 14 | . . . . . . . . . . . . . . . 1 . . . 1 1 1 . 1 2 1 3 3 Propulsion 77 | 2 . . 7 2 5 4 5 5 1 6 . 7 2 1 2 . 1 4 . 6 7 . 4 1 . . 5 Treads 19 | 1 . . 2 . 3 1 . . . . . . . 1 2 . . 1 . 3 4 . 1 . . . . Leg 22 | . . . 1 . 1 3 5 2 . . . 3 1 . . . . . . . 1 . . . . . 5 Wheel 30 | 1 . . 4 2 1 . . 3 1 6 . 4 1 . . . 1 3 . 3 . . . . . . . Hover 6 | . . . . . . . . . . . . . . . . . . . . . 2 . 3 1 . . . Flight . | . . . . . . . . . . . . . . . . . . . . . . . . . . . . Utility 265 | 1 2 . 6 . 8 8 14 14 4 6 9 16 29 9 3 7 12 23 1 10 16 6 2 24 5 21 9 Device 125 | . . . 2 . 3 3 4 5 1 1 3 3 14 3 2 5 12 11 . 4 8 2 . 16 2 15 6 Storage 27 | 1 2 . 3 . 1 2 2 1 . 1 . 2 . . . . . 4 . 1 . 2 . 3 1 . 1 Processor 6 | . . . . . . . 1 . . . . . 1 . . . . 2 . . 1 . . . 1 . . Hackware 35 | . . . . . . 1 1 2 2 2 4 6 8 1 . . . 3 1 2 1 . 1 . . . . Protection 69 | . . . 1 . 4 2 6 6 1 2 2 5 6 5 1 2 . 3 . 3 6 2 1 5 1 4 1 Artifact 3 | . . . . . . . . . . . . . . . . . . . . . . . . . . 2 1 Weapon 371 | 3 6 1 11 6 12 12 26 16 3 15 11 24 31 18 10 11 10 17 . 14 38 6 8 17 4 10 31 Energy Gun 19 | 1 2 . 2 1 . 2 4 1 . . . . . . . 1 . . . . 1 . . 1 . . 3 Energy Cannon 60 | . . . . . 2 1 4 3 . 1 1 . 7 1 2 . 2 1 . 2 8 2 1 4 2 2 14 Ballistic Gun 196 | 2 4 . 8 3 10 6 15 8 1 9 6 16 12 11 6 8 7 11 . 5 21 3 5 9 1 2 7 Ballistic Cannon . | . . . . . . . . . . . . . . . . . . . . . . . . . . . . Launcher 35 | . . 1 1 2 . 2 2 2 . 1 . 1 . 2 2 . . 2 . . 2 . 1 2 1 5 6 Special Weapon 51 | . . . . . . 1 1 2 2 4 4 7 12 4 . 1 1 3 . 3 3 1 1 1 . . . Impact Weapon . | . . . . . . . . . . . . . . . . . . . . . . . . . . . . Slashing Weapon 9 | . . . . . . . . . . . . . . . . . . . . 4 3 . . . . 1 1 Piercing Weapon . | . . . . . . . . . . . . . . . . . . . . . . . . . . . . Special Melee Weapon 1 | . . . . . . . . . . . . . . . . 1 . . . . . . . . . . . Unidentified Prototypes 40 | . . . 6 . 1 . . . . . . . . . 2 . . 2 . . 2 4 4 11 1 4 3 Parts Lost 81 | . . . 2 1 7 6 3 3 . 3 . 7 6 . 1 1 1 4 . 8 3 . . 2 . 1 22 Power 11 | . . . . . 1 1 1 . . . . 1 . . . . . . . . 1 . . 1 . 1 4 Propulsion 26 | . . . 2 . 2 2 1 1 . . . 3 2 . . . . 3 . 4 1 . . . . . 5 Utility 20 | . . . . . 2 2 1 . . 2 . 1 4 . . . . . . 1 1 . . . . . 6 Weapon 24 | . . . . 1 2 1 . 2 . 1 . 2 . . 1 1 1 1 . 3 . . . 1 . . 7 Highest Loss Streak 18 | . . . 2 1 5 6 2 3 . 2 . 4 3 . 1 1 1 2 . 4 1 . . 1 . 1 18 Average Slot Usage (%) 92 | . 99 100 82 84 87 93 98 94 92 92 93 98 97 96 91 78 88 89 94 90 92 81 95 95 92 96 81 Engine 4 | . 14 14 14 14 8 8 6 2 6 6 6 4 2 . . . . . . . . . . . 3 . . Core 1 | . . . . . . . . 4 . . . 1 2 5 3 . . 5 2 . . . . . . . . Reactor 2 | . . . . . . . . . . . . . . . 1 5 4 . 2 5 5 5 8 10 8 11 9 Treads 3 | . 14 14 5 . 2 12 . . . . . . . 2 7 11 10 3 . 4 10 10 4 . . . . Leg 4 | . . . . . 3 13 22 8 . . . 8 . . . . . . . . . . . . . . 1 Wheel 10 | . 14 14 22 28 20 . . 9 20 20 20 15 21 17 8 . . 7 15 9 3 . . . . . . Hover 2 | . . . . . . . . . . . . . . . . . . . . . 1 10 16 22 20 20 16 Device 5 | . . . . . 1 3 . 4 5 2 5 1 2 2 7 14 13 10 10 6 7 16 10 9 14 18 14 Storage 22 | . 27 28 17 14 16 18 29 30 26 26 26 26 23 23 23 23 23 21 21 21 21 14 18 18 16 16 16 Processor 4 | . . . . . . . 1 7 6 6 6 6 5 5 5 5 5 5 10 10 7 5 4 4 4 8 7 Hackware 6 | . . . . . . . 3 . 5 6 6 8 13 15 8 5 2 14 15 13 12 10 12 10 8 8 6 Protection 3 | . . . . . 7 8 6 2 . 2 . 2 3 3 5 1 5 5 . 2 4 . 3 3 5 . . Ballistic Gun 14 | . 25 14 13 9 26 23 22 18 16 19 15 18 11 14 14 3 16 12 15 10 11 1 10 11 7 1 1 Special Weapon 1 | . . . . . . . . 3 3 . 3 1 3 1 . 4 . . . . . . . . . . . Naked Turns 1 | . . . . . . . . . . . . . . . . . . . . . . . . . . . 1 Heaviest Build 205 | 12 35 35 100 100 119 115 110 107 104 106 111 111 116 112 123 125 133 129 119 155 161 127 153 205 175 192 171 Greatest Support 184 | 20 10 10 40 26 60 60 48 47 52 56 52 52 52 40 160 160 160 80 48 103 129 64 145 184 168 168 168 Greatest Overweight (x) 12 | 1 3 3 9 4 11 3 3 3 1 2 2 7 3 2 3 . 4 4 2 11 12 1 2 1 1 1 3 Average Overweight (x) 1 | . 2 3 3 3 3 1 2 2 1 1 1 2 2 2 1 . . 3 2 5 2 . 1 . . . . Largest Inventory Capacity 30 | 6 14 14 24 24 30 30 30 30 30 30 30 30 30 30 30 30 30 30 30 30 30 30 30 30 30 30 30 Average Capacity 27 | 5 13 14 20 24 29 22 29 30 30 30 30 30 30 30 30 30 30 30 30 30 30 21 30 30 30 30 27 Most Carried 30 | 4 14 14 24 24 30 25 30 30 30 30 30 30 30 30 30 30 30 30 30 30 30 30 30 30 30 30 30 Average Carried 26 | 3 10 13 14 23 26 20 28 29 29 28 29 29 29 29 29 29 29 29 29 29 29 19 28 29 29 29 26 Final Capacity 30 | 6 14 14 24 24 30 24 30 30 30 30 30 30 30 30 30 30 30 30 30 30 30 30 30 30 30 30 4 Final Carried 30 | 4 14 14 24 23 25 24 30 30 30 30 30 30 30 30 29 30 30 30 30 30 30 30 28 30 29 30 3 Class Distribution -------------------- 27% | Scavenger-Mutant 12% | Bothacker-Mutant 9% | Scavenger-Tank 8% | Hauler-Mutant 7% | Mutant 7% | Hauler-Tank 5% | Scavenger-Gunner 4% | Botlord-Mutant Dominant Class ---------------- Mutant | -10/Materials Mutant | -10/Mines Hauler-Mutant | -10/Exiles Hauler-Mutant | -9/Mines Hauler-Tank | -8/Materials Scavenger-Tank | -8/Garrison Hauler-Tank | -7/Factory Scavenger-Mutant | -7/Garrison Bothacker-Mutant | -6/Factory Bothacker-Mutant | -6/Garrison Bothacker-Mutant | -6/Factory Botlord-Mutant | -6/Garrison Bothacker-Mutant | -5/Factory Bothacker-Mutant | -5/Extension Scavenger-Tank | -5/Cetus Scavenger-Mutant | -5/Archives Scavenger-Tank | -5/Hub_04(d) Scavenger-Tank | -4/Factory Scavenger-Gunner | -4/Waste Scavenger-Mutant | -4/Factory Scavenger-Mutant | -4/Armory Scavenger-Mutant | -4/Lab Hacker-Mutant | -3/Research Generator-Gunner | -3/Testing Hacker-Mutant | -2/Research Scavenger-Mutant | -2/Quarantine Scavenger-Mutant | -2/Section 7 Resources | -11 -10 -10 -10 -9 -8 -8 -7 -7 -6 -6 -6 -6 -5 -5 -5 -5 -5 -4 -4 -4 -4 -4 -3 -3 -2 -2 -2 ----------- Run | Scr Mat Min Exi Min Mat Gar Fac Gar Fac Gar Fac Gar Fac Ext Cet Arc Hub Fac Was Fac Arm Lab Res Tes Res Qua Sec Matter Collected 19396 | 291 286 53 521 175 1039 579 860 868 . 941 281 1093 1038 1201 479 476 1058 1588 398 635 1487 250 691 983 860 410 855 Remotely . | . . . . . . . . . . . . . . . . . . . . . . . . . . . . Salvage Created 21942 | 98 421 21 472 247 1312 914 1250 764 . 879 . 642 479 588 787 750 1210 1327 1573 1155 2077 . 472 985 641 798 2080 Parts 1157 | 3 38 3 73 27 86 34 67 38 . 36 . 27 18 28 21 67 59 62 30 54 111 . 17 76 33 66 83 Haulers Intercepted 8 | . 2 . . . . . . . . . . . . . . . . 3 . 1 . . . 1 1 . . Recyclers Shooed 5 | . . . . . . . 2 . . . . . 1 . . . . . . 1 . . . 1 . . . Parts Field Recycled . | . . . . . . . . . . . . . . . . . . . . . . . . . . . . Retrieved Matter . | . . . . . . . . . . . . . . . . . . . . . . . . . . . . Parts Self-Destructed . | . . . . . . . . . . . . . . . . . . . . . . . . . . . . Prevented . | . . . . . . . . . . . . . . . . . . . . . . . . . . . . Kills | -11 -10 -10 -10 -9 -8 -8 -7 -7 -6 -6 -6 -6 -5 -5 -5 -5 -5 -4 -4 -4 -4 -4 -3 -3 -2 -2 -2 ------- Run | Scr Mat Min Exi Min Mat Gar Fac Gar Fac Gar Fac Gar Fac Ext Cet Arc Hub Fac Was Fac Arm Lab Res Tes Res Qua Sec Combat Hostiles Destroyed 317 | . 7 3 5 11 30 14 18 15 . 17 . 10 3 10 13 4 17 15 5 12 40 . 5 12 4 13 34 Melee 9 | . . . . . . . . . . . . . . . . . . . . 3 2 . . . . . 4 Guns 179 | . 7 . 5 2 24 9 9 6 . 13 . 10 3 5 7 4 15 9 5 6 23 . 5 8 2 2 . Cannons 15 | . . . . . . . . 1 . . . . . . . . . . . 1 4 . . . 1 3 5 AOE 92 | . . 3 . 9 5 4 5 8 . 4 . . . 5 6 . 1 6 . . 6 . . 4 . 8 18 Classes Destroyed 27 | 1 6 . 3 1 2 . 5 . . 2 . 1 . . . . . . 1 . 2 . . 1 . . 2 Worker 26 | . 1 . . 1 1 . 4 . . . . . . 1 . . 2 4 . 3 . . . 3 2 . 4 Builder 9 | . . . . . 2 . 2 . . . . . . . . . 3 . . 1 . . . . . . 1 Tunneler 4 | . . . . 3 . . 1 . . . . . . . . . . . . . . . . . . . . Hauler 8 | . 2 . . . . . . . . . . . . . . . . 3 . 1 . . . 1 1 . . Recycler 6 | 1 . . . . 1 . 3 . . . . . 1 . . . . . . . . . . . . . . Mechanic 2 | . . . . . . . 1 . . . . . . . . . . . . 1 . . . . . . . Operator 16 | . 1 . . . . . . . . . . . . . . 9 . 1 . 1 . . . 1 . 3 . Drone 4 | . . . . . . . . . . . . . . . . . . . . . . . . . . . 4 Turret 1 | . . . 1 . . . . . . . . . . . . . . . . . . . . . . . . Watcher 24 | . 2 . . . 1 . 3 . . . . . 1 1 2 . . 2 . . 1 . 1 . 2 3 5 Swarmer 82 | . 3 3 . 6 11 4 5 8 . 7 . 4 . 4 . . . 4 . . 10 . . 4 . 4 5 Saboteur 3 | . . . . . . . . . . . . . . . . . . . . . 3 . . . . . . Grunt 100 | . 4 . . 5 10 10 3 6 . 6 . 1 1 . 7 . 8 4 . 5 4 . 4 5 . 3 14 Brawler 7 | . . . . . . . 1 1 . 1 . . . . 1 . . 1 . . 2 . . . . . . Duelist 4 | . . . . . . . 1 . . 1 . . . . . . . . . 1 . . . . . . 1 Protector 2 | . . . . . . . . . . 1 . . . . . . . . . . . . . . . . 1 Researcher 5 | . . . . . . . . . . . . . . . . . . . . . . . . 2 . . 3 Sentry 33 | . . . . . 9 . 1 1 . . . . 1 3 . 4 3 2 . 3 2 . 1 . 3 . . Demolisher 2 | . . . . . . . . . . 1 . 1 . . . . . . . . . . . . . . . Specialist 4 | . . . . . . . . . . . . . . . . . . . . . 4 . . . . . . Hunter 23 | . . . . . . . 2 1 . . . 2 1 . 1 . 3 2 . . 6 . . . . . 5 Programmer 35 | . . . . . . . 5 . . . . 1 1 2 . . 3 2 . 3 9 . . 2 1 6 . Q-Series 1 | . . . . . . . . . . . . . . . . . . . . . . . . . . . 1 Behemoth 3 | . . . . . . . . . . . . 1 . 2 . . . . . . . . . . . . . Compactor 5 | . . . . . . . . . . . . . . . . . . . 5 . . . . . . . . Cetus Guard 4 | . . . . . . . . . . . . . . . 4 . . . . . . . . . . . . Tracker 1 | . . . . . . . . . . . . . . . . . . . . . . . . . . . 1 Combat Programmer 2 | . . . . . . . . . . . . . . . . . . . . . . . . . . . 2 Protovariant P 1 | . . . . . . . . . . . . . . . . . . . . . . . . 1 . . . Zionite 7 | . . . 7 . . . . . . . . . . . . . . . . . . . . . . . . Assembled 4 | . . . 4 . . . . . . . . . . . . . . . . . . . . . . . . Thug 1 | . . . . . . . . . . . . . . . . . . . 1 . . . . . . . . Savage 1 | . . . . . . . . . . . . . . . 1 . . . . . . . . . . . . Best Kill Streak 13 | 1 3 3 3 3 9 7 11 8 . 4 . 2 2 4 7 5 5 5 3 7 9 . 5 6 3 4 13 Combat Bots Only 9 | . 3 3 3 3 8 7 4 8 . 4 . 2 1 4 7 4 4 4 3 4 9 . 4 5 2 4 7 Max Kills in Single Turn 5 | 1 1 3 1 3 4 3 5 3 . 3 . 1 1 4 3 1 2 2 2 1 4 . 2 4 1 4 4 Gunslinging 1 | . . . . . 1 . . . . . . . . . . . . . . . . . . . . . . Exploded 4 | . . 3 . 3 4 3 3 3 . 3 . . . 4 3 . 1 2 . . 4 . . 3 . 4 4 Melee 1 | . . . . . . . . . . . . . . . . . . . . 1 1 . . . . . 1 Uniques/NPCs Destroyed 4 | . . . 4 . . . . . . . . . . . . . . . . . . . . . . . . 8R-AWN (-10/Exiles) EX-DEC (-10/Exiles) EX-BIN (-10/Exiles) EX-HEX (-10/Exiles) Combat | -11 -10 -10 -10 -9 -8 -8 -7 -7 -6 -6 -6 -6 -5 -5 -5 -5 -5 -4 -4 -4 -4 -4 -3 -3 -2 -2 -2 -------- Run | Scr Mat Min Exi Min Mat Gar Fac Gar Fac Gar Fac Gar Fac Ext Cet Arc Hub Fac Was Fac Arm Lab Res Tes Res Qua Sec Damage Taken 28177 | . 143 . 687 332 1257 940 1211 773 . 1042 172 1610 1088 676 990 400 1558 1120 . 1719 2612 . 347 965 615 407 7513 Core 3040 | . 12 . 105 62 113 74 79 35 . 198 . 138 183 66 17 . 84 22 . 151 175 . 22 85 94 25 1300 Absorbed by Shields 2106 | . . . . . . . . . . 66 . . . . . . . . . . 205 . . . . . 1835 Reduced by Siege Mode 135 | . . . . . . . . . . . . . . . 30 . 21 63 . 13 8 . . . . . . Redirected to Core 78 | . . . . . . . . . . . . . . . . . . . . . . . . . . . 78 Core Remaining (%) 69 | 100 . . . 28 . 66 . 83 . . . 60 . . . . 65 . . . . 69 . 83 . . . Volleys Fired 1505 | 5 33 1 75 34 74 63 86 80 5 62 23 107 81 57 25 87 59 74 20 37 105 . 16 66 66 62 102 Largest 3 | 2 2 1 2 1 3 3 3 3 1 3 2 3 3 3 3 3 3 3 3 3 3 . 3 3 2 3 1 Hottest 300 | 40 46 30 90 45 71 71 144 98 30 154 98 90 98 98 93 154 98 98 93 93 105 . 120 120 110 190 300 Shots Fired 2768 | 10 66 1 167 34 217 107 166 108 5 133 24 176 122 86 62 122 153 170 58 64 218 . 37 149 109 81 123 Gun 2202 | 10 66 . 167 26 215 101 144 56 1 124 3 129 70 57 57 53 145 158 58 48 175 . 34 132 87 35 51 Cannon 272 | . . . . . 2 1 19 38 . 1 2 . 18 1 1 . 6 3 . 11 32 . 1 14 22 41 59 Launcher 60 | . . 1 . 8 . 2 2 8 . 3 . 2 . 2 4 . . 4 . . 4 . . 2 . 5 13 Special 234 | . . . . . . 3 1 6 4 5 19 45 34 26 . 69 2 5 . 5 7 . 2 1 . . . Kinetic 2033 | 10 66 . 89 9 215 74 121 54 1 124 3 129 70 57 57 52 145 158 58 48 175 . 34 132 87 35 30 Thermal 301 | . . . . . . . 17 36 . 1 2 23 28 1 . 70 4 3 . . 1 . 1 13 1 41 59 Explosive 60 | . . 1 . 8 . 2 2 8 . 3 . 2 . 2 4 . . 4 . . 4 . . 2 . 5 13 Electromagnetic 242 | . . . 78 17 2 28 25 4 . . . . . . 1 . 2 . . 11 31 . . 1 21 . 21 Robot Hit Streak 39 | 6 15 . 39 6 16 13 14 26 2 10 4 22 14 12 31 22 19 17 5 14 12 . 7 9 8 12 15 Robot Miss Streak 7 | 1 3 . 4 4 5 4 4 7 1 6 3 5 3 3 2 4 4 3 3 4 4 . 5 6 5 3 3 Penetration Max 2 | . . . 2 . . . . 1 . 1 . 1 1 2 1 1 2 1 1 2 1 . 2 1 2 . 1 Secondary Targets 34 | . 1 . . . 4 2 . 2 . 2 . 3 . 2 3 . 5 2 . . 6 . 2 . . . . Max Gunslinging Chain 1 | . 1 . . . 1 1 . 1 . 1 . 1 . 1 1 . 1 1 . . 1 . 1 . . . . Autonomous 61 | . . . 40 . . . . . . . . . . . . . . . . . . . . . . . 21 Shots Hit Robots 1722 | 8 40 . 133 19 133 78 88 69 3 79 11 97 70 56 54 74 116 114 33 50 145 . 16 69 61 33 73 Core Hits 868 | 2 21 3 28 22 58 37 52 40 . 49 . 22 16 21 42 37 50 60 14 33 66 . 10 42 26 31 86 Critical Hits 207 | . . . 15 . 1 . . . . 3 . 10 15 5 6 18 11 15 11 11 8 . 13 25 23 10 7 Critical Kills 71 | . . . 3 . . . . . . 2 . 4 3 1 1 9 5 4 4 4 3 . 6 13 4 3 2 Critical Parts Destroyed 121 | . . . 9 . 1 . . . . 1 . 6 11 4 5 8 5 9 3 7 5 . 6 12 17 7 5 Melee Attacks 103 | . . . . . . . . . . . . . . . . . . . . 21 8 39 . . . 5 30 Impact . | . . . . . . . . . . . . . . . . . . . . . . . . . . . . Slashing 103 | . . . . . . . . . . . . . . . . . . . . 21 8 39 . . . 5 30 Piercing . | . . . . . . . . . . . . . . . . . . . . . . . . . . . . Sneak Attacks 4 | . . . . . . . . . . . . . . . . . . . . 2 . . . . . 1 1 Combat Hostiles . | . . . . . . . . . . . . . . . . . . . . . . . . . . . . Follow-up Attacks . | . . . . . . . . . . . . . . . . . . . . . . . . . . . . Damage Inflicted 55569 | 82 543 93 1779 800 3039 1583 2895 2397 23 1759 . 1791 1398 1734 2803 1669 3610 3120 1069 2029 4887 . 209 1100 1020 2569 11568 Guns 28491 | 82 543 . 1754 177 1767 1152 1354 547 23 1355 . 1364 1160 1251 1360 862 3186 2578 1069 980 3032 . 209 731 542 171 1242 Cannons 6660 | . . . . . 14 8 49 1192 . . . . 139 . 6 . 80 . . 360 855 . . 40 478 815 2624 Explosions 16416 | . . 93 . 623 1258 423 1468 658 . 404 . 79 . 483 1437 . 344 542 . . 899 . . 329 . 1405 5971 Melee 2643 | . . . . . . . . . . . . . . . . . . . . 648 86 . . . . 178 1731 Ramming 105 | . . . 25 . . . 24 . . . . . . . . . . . . 41 15 . . . . . . Kinetic 26991 | 82 543 . 1754 . 1767 733 979 530 23 1355 . 1364 1160 1251 1360 862 3186 2578 1069 980 3032 . 209 731 542 171 730 Thermal 8729 | . . . . 67 124 . 42 1182 . . . 348 238 . . 807 70 . . . 92 . . 40 . 815 4904 Explosive 10728 | . . 93 . 556 . 239 476 581 . 404 . 79 . 483 1111 . . 474 . . 807 . . 329 . 1405 3691 Electromagnetic 6373 | . . . . 177 1148 611 1374 104 . . . . . . 332 . 354 68 . 360 855 . . . 478 . 512 Impact . | . . . . . . . . . . . . . . . . . . . . . . . . . . . . Slashing 2643 | . . . . . . . . . . . . . . . . . . . . 648 86 . . . . 178 1731 Piercing . | . . . . . . . . . . . . . . . . . . . . . . . . . . . . Highest Corruption 24 | . . . . . 8 11 10 10 . . 2 2 10 12 14 14 9 2 17 21 24 24 1 2 4 5 6 Average Corruption 8 | . . . . . 5 10 4 6 . . 2 1 8 11 13 10 3 1 13 19 22 24 1 1 3 4 2 Corruption Purged 33 | . . . . . . . . 13 . . . 2 . . . 14 . . . . . . . . . 3 1 Effects 789 | . . . . . 26 69 33 74 . . 9 20 33 63 23 53 18 5 20 106 135 48 1 9 10 25 9 Message Errors 150 | . . . . . 6 13 7 21 . . 2 8 7 11 5 6 5 . 2 16 16 9 1 3 2 7 3 Matter Fused 125 | . . . . . 6 14 7 15 . . . . 11 10 4 8 1 . 3 16 16 7 . . 1 4 2 Heat Flow Errors 66 | . . . . . . 4 4 9 . . 2 4 1 6 . 4 3 1 . 13 5 6 . 1 2 . 1 Energy Discharges 59 | . . . . . . 7 2 10 . . 3 3 1 9 . 4 1 . 1 3 7 2 . 2 . 2 2 Parts Rejected 4 | . . . . . . . 1 . . . . . . 1 . . . . . . 2 . . . . . . Data Loss (minor) 65 | . . . . . 3 9 7 6 . . 2 2 1 3 2 3 2 . 3 10 5 2 . . . 4 1 Data Loss (major) 16 | . . . . . . 2 . 1 . . . . . . 1 4 . . . 3 4 . . . . 1 . Misfires 15 | . . . . . 1 1 1 3 . . . . 1 . . 1 . . . 3 3 . . . . 1 . Alerts 8 | . . . . . . . . 1 . . . . 1 1 . . . . . 3 1 1 . . . . . Misdirections 73 | . . . . . . 4 2 . . . . . 4 10 1 6 . . 3 21 11 11 . . . . . Targeting Errors 187 | . . . . . 9 13 2 8 . . . 3 5 10 7 15 6 4 6 18 58 10 . 3 4 6 . Weapon Failures 21 | . . . . . 1 2 . . . . . . 1 2 3 2 . . 2 . 7 . . . 1 . . Overload Shots . | . . . . . . . . . . . . . . . . . . . . . . . . . . . . Overflow Damage 1606 | . . . . 23 169 19 26 38 . 16 . . . . 28 . . 1 . 96 22 . . . 3 68 1097 Projectiles 198 | . . . . . . . . 38 . . . . . . . . . . . . . . . . 3 . 157 Explosions 1064 | . . . . 23 169 19 22 . . 16 . . . . 28 . . 1 . . 7 . . . . 68 711 Melee 344 | . . . . . . . 4 . . . . . . . . . . . . 96 15 . . . . . 229 Knockbacks 1 | . . . 1 . . . . . . . . . . . . . . . . . . . . . . . . Impact 1 | . . . 1 . . . . . . . . . . . . . . . . . . . . . . . . Kinetic . | . . . . . . . . . . . . . . . . . . . . . . . . . . . . Secondary . | . . . . . . . . . . . . . . . . . . . . . . . . . . . . Self-Inflicted Damage 1625 | . . . . 128 41 36 . 23 . 21 . 8 . . 23 . . . . . . . . 73 . 25 1247 Shots 17 | . . . . 4 1 1 . 1 . 1 . 1 . . 1 . . . . . . . . 1 . 2 4 Rammed 9 | . . . 4 . . . . . . . . . . . . . . . . 3 2 . . . . . . Targets Rammed 10 | . . . 4 . . . 1 . . . . . . . . . . . . 3 2 . . . . . . Kicked 1 | . . . . . . . 1 . . . . . . . . . . . . . . . . . . . . Crushed . | . . . . . . . . . . . . . . . . . . . . . . . . . . . . Highest Temperature 321 | . 24 . 220 86 102 311 255 268 . 63 201 262 228 263 134 251 321 219 148 261 267 234 . 292 269 . 268 Average Temperature 69 | . 8 . 94 32 26 105 65 91 . 14 60 61 72 53 54 97 90 52 53 83 71 106 . 77 101 . 66 Received Heat Transfer 3431 | . 60 . . 84 405 495 114 117 . 220 39 144 63 123 171 45 261 57 . 162 114 . 27 111 72 18 529 Effects 7 | . . . . . . 1 . . . . . . . . . . . . . 3 3 . . . . . . Interference 7 | . . . . . . 1 . . . . . . . . . . . . . 3 3 . . . . . . Siege Activations 5 | . . . . . . . . . . . . . . . 1 . 1 1 . 1 1 . . . . . . Total Turns 124 | . . . . . . . . . . . . . . . 22 . 13 45 . 21 23 . . . . . . Longest Duration 45 | . . . . . . . . . . . . . . . 22 . 13 45 . 21 23 . . . . . . Robots Corrupted 24 | . . . . . 1 4 5 . . . . . . . . . 1 . . 2 5 . . . 2 . 4 Combat Hostiles 18 | . . . . . 1 1 4 . . . . . . . . . 1 . . 2 5 . . . 1 . 3 Parts Fried 48 | . . . . . 9 3 8 . . . . . . . 2 . 5 . . 4 7 . . . 2 . 8 Impact Corruptions 2 | . . . . . . . 1 . . . . . . . . . . . . 1 . . . . . . . Robots Melted . | . . . . . . . . . . . . . . . . . . . . . . . . . . . . Combat Hostiles . | . . . . . . . . . . . . . . . . . . . . . . . . . . . . Parts Melted 10 | . . . . . . . . 1 . 1 . . 3 . . 2 1 . . . . . . . . . 2 Heat Transferred 9024 | . . . . 50 150 . 37 1258 . . . 777 370 . . 1813 74 . . . 50 . . 25 . 592 3828 Parts Sabotaged 2 | . . . . . . . . . . . . . . . . . . . . . 2 . . . . . . Parts Stolen . | . . . . . . . . . . . . . . . . . . . . . . . . . . . . Parts Stripped . | . . . . . . . . . . . . . . . . . . . . . . . . . . . . Power Chain Reactions 3 | . . . . 2 . . 1 . . . . . . . . . . . . . . . . . . . . Missiles Intercepted . | . . . . . . . . . . . . . . . . . . . . . . . . . . . . Latent Energy Used 1193 | . . . . . 400 107 269 135 . . . . . . 119 . 163 . . . . . . . . . . LE Corruption 22 | . . . . . 6 2 5 3 . . . . . . 2 . 4 . . . . . . . . . . Alert | -11 -10 -10 -10 -9 -8 -8 -7 -7 -6 -6 -6 -6 -5 -5 -5 -5 -5 -4 -4 -4 -4 -4 -3 -3 -2 -2 -2 ------- Run | Scr Mat Min Exi Min Mat Gar Fac Gar Fac Gar Fac Gar Fac Ext Cet Arc Hub Fac Was Fac Arm Lab Res Tes Res Qua Sec Peak Influence 1942 | 5 179 80 . 190 675 929 822 1292 722 1153 649 397 286 401 610 424 541 534 184 172 762 . 135 382 307 462 1942 Initial 678 | . 3 10 . . 27 440 487 575 678 505 604 77 207 14 224 244 . 264 162 128 41 . . 6 69 61 175 Average 413 | 3 74 21 . 114 384 781 524 1043 699 860 332 183 158 170 380 228 217 269 177 63 369 . 38 199 188 309 833 Maximum Alert Level 5 | . . . . . 2 3 3 4 3 4 2 1 1 2 2 2 2 2 . . 3 . . 1 1 2 5 Low Security (%) 37 | 100 100 100 . 100 8 . . . . . 47 54 58 69 . 35 50 33 100 100 31 . 100 41 40 23 5 Level 1 20 | . . . . . 49 . 7 . . . 19 45 41 23 59 37 25 44 . . 22 . . 58 59 49 29 Level 2 22 | . . . . . 42 31 80 23 36 22 33 . . 7 40 26 24 21 . . 45 . . . . 27 12 Level 3 9 | . . . . . . 68 11 12 63 53 . . . . . . . . . . . . . . . . 30 Level 4 8 | . . . . . . . . 63 . 24 . . . . . . . . . . . . . . . . . Level 5 . | . . . . . . . . . . . . . . . . . . . . . . . . . . . 5 High Security . | . . . . . . . . . . . . . . . . . . . . . . . . . . . 16 Max Security . | . . . . . . . . . . . . . . . . . . . . . . . . . . . . Squads Dispatched 67 | . . . . . 5 . 8 . . . 2 . 9 2 . . 7 4 . 2 4 . 1 6 1 2 14 Investigation 7 | . . . . . . . 1 . . . 1 . 2 2 . . . . . . . . . . . . 1 Extermination 16 | . . . . . . . 3 . . . 1 . 1 . . . 2 1 . 1 3 . . 1 . 2 1 Reinforcement 28 | . . . . . 2 . 3 . . . . . 3 . . . 5 3 . 1 1 . 1 4 1 . 4 Assault 7 | . . . . . . . 1 . . . . . . . . . . . . . . . . 1 . . 5 Garrison 6 | . . . . . 3 . . . . . . . 3 . . . . . . . . . . . . . . Intercept 3 | . . . . . . . . . . . . . . . . . . . . . . . . . . . 3 Construction Impeded 5 | . . . . . . . 1 . . . . . 1 . . . . . . . . . . 2 . . 1 Haulers Reinforced 7 | . . . . . . . . . . . . . 1 . . . 2 2 . . . . 1 1 . . . Alert ID Control Effect 21 | . . . . . . . . . . . 2 9 10 . . . . . . . . . . . . . . Stealth | -11 -10 -10 -10 -9 -8 -8 -7 -7 -6 -6 -6 -6 -5 -5 -5 -5 -5 -4 -4 -4 -4 -4 -3 -3 -2 -2 -2 --------- Run | Scr Mat Min Exi Min Mat Gar Fac Gar Fac Gar Fac Gar Fac Ext Cet Arc Hub Fac Was Fac Arm Lab Res Tes Res Qua Sec Distress Signals 32 | . . . . 1 4 . 1 . . . 2 . 1 2 2 . 1 1 . . 5 . 5 5 . . 2 Communications Jammed 111 | . . . . . . . . . . . . . 4 . . . 3 2 . 27 37 . 10 6 19 2 1 Distress Signals 111 | . . . . . . . . . . . . . 4 . . . 3 2 . 27 37 . 10 6 19 2 1 Times Spotted 667 | . 14 . 24 10 45 16 31 24 4 27 15 34 27 27 21 66 27 20 5 17 61 . 8 28 14 17 85 Peak Tracking Total 16 | . 4 . 9 3 5 4 6 9 3 8 2 4 5 4 6 1 6 5 1 4 9 . 4 5 4 4 16 Tactical Retreats 48 | . 1 . 6 . 3 2 . 4 . 4 . 2 . 1 1 . 4 1 . 1 3 . . 5 . 1 9 Traps | -11 -10 -10 -10 -9 -8 -8 -7 -7 -6 -6 -6 -6 -5 -5 -5 -5 -5 -4 -4 -4 -4 -4 -3 -3 -2 -2 -2 ------- Run | Scr Mat Min Exi Min Mat Gar Fac Gar Fac Gar Fac Gar Fac Ext Cet Arc Hub Fac Was Fac Arm Lab Res Tes Res Qua Sec Traps Triggered 47 | . . . . . 2 7 4 6 . 7 1 5 4 2 . . 1 1 . 4 2 . . . . . 1 Indirectly 2 | . . . . . . . 1 1 . . . . . . . . . . . . . . . . . . . Trap Hack Attempts . | . . . . . . . . . . . . . . . . . . . . . . . . . . . . Triggered . | . . . . . . . . . . . . . . . . . . . . . . . . . . . . Disarmed . | . . . . . . . . . . . . . . . . . . . . . . . . . . . . Reprogrammed . | . . . . . . . . . . . . . . . . . . . . . . . . . . . . Reused . | . . . . . . . . . . . . . . . . . . . . . . . . . . . . Traps Extracted . | . . . . . . . . . . . . . . . . . . . . . . . . . . . . Installed . | . . . . . . . . . . . . . . . . . . . . . . . . . . . . Triggered . | . . . . . . . . . . . . . . . . . . . . . . . . . . . . Exploded 2 | . . . 2 . . . . . . . . . . . . . . . . . . . . . . . . Machines | -11 -10 -10 -10 -9 -8 -8 -7 -7 -6 -6 -6 -6 -5 -5 -5 -5 -5 -4 -4 -4 -4 -4 -3 -3 -2 -2 -2 ---------- Run | Scr Mat Min Exi Min Mat Gar Fac Gar Fac Gar Fac Gar Fac Ext Cet Arc Hub Fac Was Fac Arm Lab Res Tes Res Qua Sec Machines Disabled 108 | . 1 . 15 . 4 2 8 5 . 5 2 4 3 2 2 2 9 8 . 1 10 2 . 3 1 11 8 Max in Single Turn 5 | . 1 . 2 . 2 1 5 1 . 2 1 1 1 2 1 1 3 2 . 1 4 1 . 1 1 4 1 Garrison Access 5 | . . . . . . . . . . . . . 1 . . . . 1 . 1 . . 1 . . 1 . Garrison Relay 12 | . . . . . . 2 . 3 . 3 . 4 . . . . . . . . . . . . . . . Phase Generator 1 | . . . . . . . . . . 1 . . . . . . . . . . . . . . . . . Energy Cycler 2 | . . . . . . . . . . . . . . 1 . . . . . . 1 . . . . . . Machines Sabotaged . | . . . . . . . . . . . . . . . . . . . . . . . . . . . . Garrisons Compromised . | . . . . . . . . . . . . . . . . . . . . . . . . . . . . Overloaded Fab Kills . | . . . . . . . . . . . . . . . . . . . . . . . . . . . . Fab Network Shutdowns . | . . . . . . . . . . . . . . . . . . . . . . . . . . . . Hacking | -11 -10 -10 -10 -9 -8 -8 -7 -7 -6 -6 -6 -6 -5 -5 -5 -5 -5 -4 -4 -4 -4 -4 -3 -3 -2 -2 -2 --------- Run | Scr Mat Min Exi Min Mat Gar Fac Gar Fac Gar Fac Gar Fac Ext Cet Arc Hub Fac Was Fac Arm Lab Res Tes Res Qua Sec Machines Accessed 99 | . 6 1 2 . 5 . 8 . 2 . 5 . 8 10 . . 3 4 . 5 8 1 6 5 4 14 2 Terminals 65 | . 6 1 . . 4 . 3 . 1 . 3 . 5 10 . . 3 2 . 1 3 . 2 5 3 11 2 Fabricators 11 | . . . . . . . 3 . . . 1 . 1 . . . . . . 1 4 . 1 . . . . Repair Stations 5 | . . . . . . . . . . . . . . . . . . 1 . 1 1 . 1 . . 1 . Recycling Units 3 | . . . . . . . 1 . . . . . 1 . . . . . . . . . 1 . . . . Scanalyzers 3 | . . . . . . . . . . . . . . . . . . . . 1 . . 1 . . 1 . Garrison Access 9 | . . . . . 1 . 1 . 1 . 1 . 1 . . . . 1 . 1 . . . . 1 1 . Total Hacks 245 | . 19 8 2 . 9 . 20 . 6 . 9 . 15 20 . . 5 10 . 13 22 18 12 12 9 31 5 Successful 140 | . 9 4 2 . 5 . 9 . 5 . 3 . 6 7 . . 1 5 . 11 12 18 6 8 7 21 1 Failed 105 | . 10 4 . . 4 . 11 . 1 . 6 . 9 13 . . 4 5 . 2 10 . 6 4 2 10 4 Catastrophic 17 | . 1 . . . 1 . 3 . . . 1 . 2 3 . . 1 1 . 1 1 . . . . 2 . Database Lockouts . | . . . . . . . . . . . . . . . . . . . . . . . . . . . . Manual 114 | . 15 8 1 . 8 . 7 . 5 . 5 . 7 10 . . 2 5 . 6 7 . . 9 6 11 2 Terminals 159 | . 19 8 . . 8 . 7 . 5 . 5 . 10 20 . . 5 6 . 3 9 . 4 12 5 28 5 Fabricators 30 | . . . . . . . 9 . . . 2 . 2 . . . . . . 3 12 . 2 . . . . Repair Stations 8 | . . . . . . . . . . . . . . . . . . 2 . 2 1 . 2 . . 1 . Recycling Units 4 | . . . . . . . 1 . . . . . 1 . . . . . . . . . 2 . . . . Scanalyzers 7 | . . . . . . . . . . . . . . . . . . . . 4 . . 2 . . 1 . Garrison Access 17 | . . . . . 1 . 3 . 1 . 2 . 2 . . . . 2 . 1 . . . . 4 1 . Terminal Hacks 67 | . 4 4 2 . 1 . 2 . 2 . 1 . 2 4 . . . . . 1 3 18 1 4 2 15 1 Record 20 | . . . 1 . . . . . . . . . . . . . . . . . . 18 . . . 1 . Part Schematic 1 | . 1 . . . . . . . . . . . . . . . . . . . . . . . . . . Robot Analysis 5 | . 1 . . . . . . . 1 . . . . . . . . . . . . . . . . 3 . Prototype ID Bank 6 | . 1 4 . . . . . . . . . . . 1 . . . . . . . . . . . . . Open Door 3 | . . . . . . . . . . . . . 1 1 . . . . . . . . . . 1 . . Branch Access Points 4 | . . . . . . . . . 1 . . . 1 . . . . . . 1 . . 1 . . . . Machine Index 1 | . . . . . . . . . . . . . . . . . . . . . . . . . . . 1 Terminal Index 2 | . . . . . . . . . . . . . . . . . . . . . 1 . . . . 1 . Fabricator Index 1 | . . . . . . . . . . . . . . . . . . . . . . . . . . 1 . Scanalyzer Index 1 | . . . . . . . . . . . . . . . . . . . . . . . . . . 1 . Garrison Index 2 | . . . . . . . . . . . . . . . . . . . . . . . . . 1 1 . Unreport Threat 2 | . . . . . . . . . . . . . . . . . . . . . . . . 1 . 1 . Locate Traps 6 | . . . . . . . 1 . . . 1 . . 2 . . . . . . 1 . . . . 1 . Recall Reinforcements 1 | . . . . . . . . . . . . . . . . . . . . . . . . 1 . . . Zone Layout 10 | . 1 . . . 1 . 1 . . . . . . . . . . . . . 1 . . 1 . 5 . EX-Prototype ID Bank 1 | . . . 1 . . . . . . . . . . . . . . . . . . . . . . . . Protovariant Controls 1 | . . . . . . . . . . . . . . . . . . . . . . . . 1 . . . Fabricator Hacks 9 | . . . . . . . 1 . . . . . . . . . . . . . 6 . 2 . . . . Network Status 2 | . . . . . . . . . . . . . . . . . . . . . 2 . . . . . . Load Schematic 3 | . . . . . . . . . . . . . . . . . . . . . 2 . 1 . . . . Build 4 | . . . . . . . 1 . . . . . . . . . . . . . 2 . 1 . . . . Repair Station Hacks 4 | . . . . . . . . . . . . . . . . . . 1 . 2 . . 1 . . . . Scan Component 3 | . . . . . . . . . . . . . . . . . . 1 . 1 . . 1 . . . . Repair 1 | . . . . . . . . . . . . . . . . . . . . 1 . . . . . . . Recycling Unit Hacks 1 | . . . . . . . . . . . . . . . . . . . . . . . 1 . . . . Retrieve Components 1 | . . . . . . . . . . . . . . . . . . . . . . . 1 . . . . Scanalyzer 6 | . . . . . . . . . . . . . . . . . . . . 4 . . 1 . . 1 . Insert Component 4 | . . . . . . . . . . . . . . . . . . . . 2 . . 1 . . 1 . Analyze 2 | . . . . . . . . . . . . . . . . . . . . 2 . . . . . . . Garrison Access Hacks 11 | . . . . . 1 . 2 . 1 . 1 . 2 . . . . 2 . 1 . . . . . 1 . Unlock Access 4 | . . . . . 1 . 1 . 1 . 1 . . . . . . . . . . . . . . . . Seal Access 4 | . . . . . . . . . . . . . 1 . . . . 1 . 1 . . . . . 1 . Coupler Status 3 | . . . . . . . 1 . . . . . 1 . . . . 1 . . . . . . . . . Unauthorized Hacks 42 | . 5 . . . 3 . 4 . 2 . 1 . 2 3 . . 1 2 . 3 3 . . 4 5 4 . Terminals 29 | . 5 . . . 3 . . . 2 . . . 1 3 . . 1 2 . 1 2 . . 4 1 4 . Track 9 | . 1 . . . 1 . . . . . . . . 1 . . . . . . 1 . . 4 . 1 . Assimilate 4 | . 1 . . . . . . . . . . . 1 . . . . . . . . . . . . 2 . Botnet 12 | . 2 . . . 2 . . . 1 . . . . 1 . . 1 2 . 1 . . . . 1 1 . Disrupt 2 | . . . . . . . . . . . . . . 1 . . . . . . 1 . . . . . . Operators 2 | . 1 . . . . . . . 1 . . . . . . . . . . . . . . . . . . Fabricators 7 | . . . . . . . 3 . . . . . 1 . . . . . . 2 1 . . . . . . Report 1 | . . . . . . . . . . . . . . . . . . . . 1 . . . . . . . Prioritize 1 | . . . . . . . 1 . . . . . . . . . . . . . . . . . . . . Siphon 2 | . . . . . . . 1 . . . . . . . . . . . . . 1 . . . . . . Haulers 3 | . . . . . . . 1 . . . . . 1 . . . . . . 1 . . . . . . . Repair Stations . | . . . . . . . . . . . . . . . . . . . . . . . . . . . . Recycling Units . | . . . . . . . . . . . . . . . . . . . . . . . . . . . . Scanalyzers . | . . . . . . . . . . . . . . . . . . . . . . . . . . . . Garrison Access 6 | . . . . . . . 1 . . . 1 . . . . . . . . . . . . . 4 . . Broadcast 1 | . . . . . . . . . . . . . . . . . . . . . . . . . 1 . . Decoy 1 | . . . . . . . . . . . . . . . . . . . . . . . . . 1 . . Redirect 1 | . . . . . . . . . . . . . . . . . . . . . . . . . 1 . . Watchers 1 | . . . . . . . . . . . . . . . . . . . . . . . . . 1 . . Eject 2 | . . . . . . . 1 . . . 1 . . . . . . . . . . . . . . . . Data Cores Recovered 5 | . 1 . . . . . . . . . . . 1 . . . . . . 1 . . . 1 . 1 . Used 4 | . 1 . . . . . . . . . . . 1 . . . . . . . . . . 1 . 1 . Hacking Detections 81 | . 6 1 . . 5 . 7 . 2 . 4 . 5 9 . . 3 3 . 2 8 . 5 4 3 12 2 Full Trace Events 3 | . . . . . . . . . . . . . 1 1 . . . . . . . . . . . . 1 Feedback Events 1 | . . . . . . . . . . . . . . 1 . . . . . . . . . . . . . Corruption 1 | . . . . . . . . . . . . . . 1 . . . . . . . . . . . . . Feedback Blocked . | . . . . . . . . . . . . . . . . . . . . . . . . . . . . Robot Schematics Acquired . | . . . . . . . . . . . . . . . . . . . . . . . . . . . . Robots Built . | . . . . . . . . . . . . . . . . . . . . . . . . . . . . Matter . | . . . . . . . . . . . . . . . . . . . . . . . . . . . . Time . | . . . . . . . . . . . . . . . . . . . . . . . . . . . . Total Robot Build Rating . | . . . . . . . . . . . . . . . . . . . . . . . . . . . . Part Schematics Acquired 3 | . 1 . . . . . . . . . . . . . . . . . . 2 . . . . . . . Parts Built 6 | . . . . . . . 2 . . . . . . . . . . . . . 2 . 2 . . . . Matter 1046 | . . . . . . . 212 . . . . . . . . . . . . . 556 . 278 . . . . Time 430 | . . . . . . . 106 . . . . . . . . . . . . . 278 . 46 . . . . Total Part Build Rating 48 | . . . . . . . 12 . . . . . . . . . . . . . 18 . 18 . . . . Parts Repaired 1 | . . . . . . . . . . . . . . . . . . . . 1 . . . . . . . Time 34 | . . . . . . . . . . . . . . . . . . . . 34 . . . . . . . Parts Recycled . | . . . . . . . . . . . . . . . . . . . . . . . . . . . . Recycled Matter . | . . . . . . . . . . . . . . . . . . . . . . . . . . . . Retrieved Matter . | . . . . . . . . . . . . . . . . . . . . . . . . . . . . Retrieved Components 2 | . . . . . . . . . . . . . . . . . . . . . . . 2 . . . . Parts Scanalyzed 2 | . . . . . . . . . . . . . . . . . . . . 2 . . . . . . . Part Schematics Acquired 2 | . . . . . . . . . . . . . . . . . . . . 2 . . . . . . . Parts Damaged . | . . . . . . . . . . . . . . . . . . . . . . . . . . . . Bothacking | -11 -10 -10 -10 -9 -8 -8 -7 -7 -6 -6 -6 -6 -5 -5 -5 -5 -5 -4 -4 -4 -4 -4 -3 -3 -2 -2 -2 ------------ Run | Scr Mat Min Exi Min Mat Gar Fac Gar Fac Gar Fac Gar Fac Ext Cet Arc Hub Fac Was Fac Arm Lab Res Tes Res Qua Sec Used RIF Installer 4 | . . . . . . 1 . 1 . 1 . 1 . . . . . . . . . . . . . . . Command Fork 1 | . . . . . . . . 1 . . . . . . . . . . . . . . . . . . . Threat Obfuscator 1 | . . . . . . . . . . . . 1 . . . . . . . . . . . . . . . Alert ID Control 1 | . . . . . . . . . . 1 . . . . . . . . . . . . . . . . . Robots Hacked 62 | . . . . . . 2 1 4 3 5 9 9 14 3 . . 1 3 . 3 3 . 1 1 . . . Non-combat 23 | . . . . . . . . . 3 1 3 . 5 . . . 1 3 . 3 3 . 1 . . . . Combat 39 | . . . . . . 2 1 4 . 4 6 9 9 3 . . . . . . . . . 1 . . . Robot Hacks Applied 69 | . . . . . . 2 1 4 3 5 11 9 14 3 . . 2 4 . 4 4 . 2 1 . . . parse_system 3 | . . . . . . . . . 1 . . 1 . . . . . . . . 1 . . . . . . find_chute 1 | . . . . . . . . . . . . . . . . . . 1 . . . . . . . . . find_fabricator 3 | . . . . . . . . . . . 1 . . . . . . 1 . . . . 1 . . . . drop_inventory 6 | . . . . . . . . . 1 . . . 2 . . . . 1 . 1 . . 1 . . . . purge_threat 3 | . . . . . . . . . . . 2 . . . . . . 1 . . . . . . . . . block_reporting 1 | . . . . . . . . . . . . . . . . . . . . . 1 . . . . . . map_route 6 | . . . . . . . . . 1 . 1 . 1 . . . 1 . . 1 1 . . . . . . relay_feed 2 | . . . . . . . . . . . . . . . . . 1 . . 1 . . . . . . . redirect_shields 1 | . . . . . . . . . . 1 . . . . . . . . . . . . . . . . . disable_scanner 1 | . . . . . . . . . . . . . . . . . . . . . . . . 1 . . . find_garrison 1 | . . . . . . . . . . . 1 . . . . . . . . . . . . . . . . scatter_targeting 1 | . . . . . . . . . . . . . 1 . . . . . . . . . . . . . . reboot_system 1 | . . . . . . . . . . . . . . 1 . . . . . . . . . . . . . overwrite_iff 12 | . . . . . . 1 . 3 . 4 1 1 2 . . . . . . . . . . . . . . streamctrl_low 1 | . . . . . . . . . . . . . . . . . . . . . 1 . . . . . . streamctrl_high 2 | . . . . . . . . . . . . . 1 1 . . . . . . . . . . . . . formatsys_low 2 | . . . . . . . . . . . . . 1 . . . . . . 1 . . . . . . . formatsys_high 22 | . . . . . . 1 1 1 . . 5 7 6 1 . . . . . . . . . . . . . Relay Couplers Released 62 | . . . . . . 6 4 13 . 10 4 17 1 . . . . 3 . 2 . . 1 . . 1 . Ejected 8 | . . . . . . . 4 . . . 4 . . . . . . . . . . . . . . . . Machine Destruction 54 | . . . . . . 6 . 13 . 10 . 17 1 . . . . 3 . 2 . . 1 . . 1 . Attached 30 | . . . . . . 1 1 2 2 2 4 6 7 1 . . . 1 1 1 1 . . . . . . Robots Rewired 34 | . . . . . . . . . . . . 9 1 22 . . . . . . 2 . . . . . . Allies Hacked 1 | . . . . . . . . . . . . . . . . . . . . . 1 . . . . . . Hacks Repelled . | . . . . . . . . . . . . . . . . . . . . . . . . . . . . Allies | -11 -10 -10 -10 -9 -8 -8 -7 -7 -6 -6 -6 -6 -5 -5 -5 -5 -5 -4 -4 -4 -4 -4 -3 -3 -2 -2 -2 -------- Run | Scr Mat Min Exi Min Mat Gar Fac Gar Fac Gar Fac Gar Fac Ext Cet Arc Hub Fac Was Fac Arm Lab Res Tes Res Qua Sec Total Allies 86 | . . . . . . 2 1 4 . 5 7 19 12 29 . . . . 1 1 3 . . . . 2 . Largest Group 16 | . . . . . . 1 1 3 . 2 4 13 16 14 12 . . . 1 1 3 . . . . 1 1 Highest-Rated Group 415 | . . . . . . 29 32 48 . 54 155 343 415 411 350 . . . 46 20 139 . . . . 40 40 Highest-Rated Ally 77 | . . . . . . 29 32 32 . 29 47 47 49 77 37 . . . 46 20 60 . . . . 40 40 Total Orders 19 | . . . . . . . . 1 . . . 2 11 . . . . . . 2 3 . . . . . . STAY 7 | . . . . . . . . 1 . . . 1 3 . . . . . . . 2 . . . . . . FOLLOW 2 | . . . . . . . . . . . . 1 1 . . . . . . . . . . . . . . AID 9 | . . . . . . . . . . . . . 7 . . . . . . 1 1 . . . . . . RETURN 1 | . . . . . . . . . . . . . . . . . . . . 1 . . . . . . . Ally Attacks 516 | . . . . . . 3 16 22 . 14 22 66 152 137 57 . . . 15 . 2 . . . . . 10 Total Damage 12255 | . . . . . . 53 508 397 . 208 409 1873 4030 2921 1045 . . . 326 . 49 . . . . . 436 Kills 99 | . . . . . . . 6 4 . . 8 11 33 25 9 . . . 1 . . . . . . . 2 Allies Corrupted 2 | . . . . . . . . . . . . 1 . . . . . . . . 1 . . . . . . Allies Melted 1 | . . . . . . . . . . . . . . . . . . . . . . . . . . . 1 Turrets Deployed 1 | . . . . . . . . . . . . . . . . . . . . . . . . . . . 1 Intel | -11 -10 -10 -10 -9 -8 -8 -7 -7 -6 -6 -6 -6 -5 -5 -5 -5 -5 -4 -4 -4 -4 -4 -3 -3 -2 -2 -2 ------- Run | Scr Mat Min Exi Min Mat Gar Fac Gar Fac Gar Fac Gar Fac Ext Cet Arc Hub Fac Was Fac Arm Lab Res Tes Res Qua Sec Robot Analysis Total 5 | . 1 . . . . . . . 1 . . . . . . . . . . . . . . . . 3 . Derelict Logs Recovered 2 | . . 2 . . . . . . . . . . . . . . . . . . . . . . . . . Drone Launches 3 | . . . . . . . . . . . . . . . . . . . . 3 . . . . . . . Drone Recoveries 3 | . . . . . . . . . . . . . . . . . . . . 3 . . . . . . . Exploration | -11 -10 -10 -10 -9 -8 -8 -7 -7 -6 -6 -6 -6 -5 -5 -5 -5 -5 -4 -4 -4 -4 -4 -3 -3 -2 -2 -2 ------------- Run | Scr Mat Min Exi Min Mat Gar Fac Gar Fac Gar Fac Gar Fac Ext Cet Arc Hub Fac Was Fac Arm Lab Res Tes Res Qua Sec Turns Passed 29373 | 130 818 628 1808 603 1070 1397 2397 3171 277 1169 870 2479 1298 1113 323 1247 794 902 213 1375 1279 638 661 558 421 974 760 Spaces Moved 16704 | 119 601 556 1179 427 601 610 1100 848 218 824 710 1136 811 624 168 620 369 490 147 780 472 322 330 547 405 983 707 Core 86 | 5 . . . . . . . . . . . . . . . . . . . . . . . . . . 81 Treads 1787 | 3 . . 19 . 37 437 . . . . . . . . 51 620 357 1 . 8 237 . 17 . . . . Legs 1886 | . . . . . . 173 1100 209 . . . 389 . . . . . . . . . . . . . . 15 Wheels 9707 | 111 601 556 1160 427 564 . . 639 218 824 710 747 811 624 117 . 12 489 147 772 178 . . . . . . Hover 3238 | . . . . . . . . . . . . . . . . . . . . . 57 322 313 547 405 983 611 Flight . | . . . . . . . . . . . . . . . . . . . . . . . . . . . . Fastest Speed 42 | 50 80 110 90 120 110 150 180 115 103 103 103 103 102 113 113 160 140 106 106 106 130 96 136 42 42 42 42 Average Speed 119 | 84 104 110 118 120 122 191 181 132 103 108 107 139 111 113 133 160 159 130 106 133 168 113 161 49 46 44 49 Slowest Speed 400 | 160 110 110 240 120 190 220 210 215 103 113 113 180 120 113 160 160 160 180 106 190 400 196 296 136 132 132 360 Overloaded Moves . | . . . . . . . . . . . . . . . . . . . . . . . . . . . . Propulsion Burnouts . | . . . . . . . . . . . . . . . . . . . . . . . . . . . . Robots Hopped . | . . . . . . . . . . . . . . . . . . . . . . . . . . . . Cave-ins Triggered . | . . . . . . . . . . . . . . . . . . . . . . . . . . . . Teleports 1 | . . . . . . . . . . . . . . . . . . . . . . . 1 . . . . Exploration Rate (%) 55 | 5 71 95 90 91 57 55 19 72 8 93 24 87 23 77 66 83 47 15 79 23 51 97 11 66 13 92 32 Regions Visited 27 Branch Regions 12 Pre-discovered Areas 2 | . . 1 1 . . . . . . . . . . . . . . . . . . . . . . . . Known Exits Taken 13 | . . . . . 1 . 1 . 1 . 1 . 1 1 1 1 1 . . 1 . . 1 . 1 1 . Unknown Exits Taken 8 | 1 1 1 1 1 . . . . . . . . . . . . . . . . 1 1 . 1 . . . Scrap Searched 3 | . . 2 . 1 . . . . . . . . . . . . . . . . . . . . . . . Spaces Dug 119 | . . . . 5 . . 12 . . 3 1 . 7 6 . 2 . 2 . 6 3 20 1 11 . 8 32 Terrain Destroyed 1764 | . . 7 18 74 62 8 89 22 . 116 1 11 19 80 103 31 78 146 14 9 101 20 1 30 . 100 624 Melee 36 | . . . . . . . . . . . . . . . . . . . . 6 2 20 . . . 2 6 Projectile 368 | . . . 18 . . . 15 . . 20 1 8 19 26 15 31 61 65 14 3 12 . 1 15 . 17 27 AOE 1360 | . . 7 . 74 62 8 74 22 . 96 . 3 . 54 88 . 17 81 . . 87 . . 15 . 81 591 Terrain Rammed . | . . . . . . . . . . . . . . . . . . . . . . . . . . . . Walls Destroyed . | . . . . . . . . . . . . . . . . . . . . . . . . . . . . Machines Disabled . | . . . . . . . . . . . . . . . . . . . . . . . . . . . . Actions | -11 -10 -10 -10 -9 -8 -8 -7 -7 -6 -6 -6 -6 -5 -5 -5 -5 -5 -4 -4 -4 -4 -4 -3 -3 -2 -2 -2 --------- Run | Scr Mat Min Exi Min Mat Gar Fac Gar Fac Gar Fac Gar Fac Ext Cet Arc Hub Fac Was Fac Arm Lab Res Tes Res Qua Sec Total 23816 | 135 736 573 1476 482 790 756 1374 2806 265 1000 799 1869 1087 970 239 747 483 656 177 1030 773 544 430 716 527 1432 944 Wait 3638 | . 68 8 86 10 55 13 100 1767 31 15 37 441 105 83 10 1 21 15 . 119 79 124 57 11 38 311 33 Move 16679 | 118 600 555 1178 426 601 609 1099 847 217 823 709 1135 810 623 167 619 368 490 146 779 471 321 329 546 404 982 707 Hop . | . . . . . . . . . . . . . . . . . . . . . . . . . . . . Pick Up 291 | 3 14 4 57 1 17 23 14 13 3 10 4 10 11 4 5 7 5 10 3 10 11 25 1 13 1 9 3 Fast Attach 198 | 7 3 . 13 1 7 6 9 6 . 4 2 12 10 5 6 9 1 7 1 11 20 8 7 18 6 10 9 Attach 157 | . . . 6 1 10 6 4 4 3 4 2 7 8 7 4 5 3 10 1 5 14 4 6 12 3 9 19 Detach 99 | 1 2 . 4 . 3 2 1 2 1 1 2 3 4 5 4 1 1 9 1 3 12 3 4 8 3 9 10 Swap 397 | 1 6 1 7 6 9 13 34 27 5 19 17 30 45 16 6 4 20 27 . 15 28 . 5 14 2 16 24 Drop 334 | . 10 4 46 3 14 7 16 17 . 13 3 13 13 8 12 14 5 14 5 11 23 20 5 28 4 19 7 Fire 1505 | 5 33 1 75 34 74 63 86 80 5 62 23 107 81 57 25 87 59 74 20 37 105 . 16 66 66 62 102 Melee 103 | . . . . . . . . . . . . . . . . . . . . 21 8 39 . . . 5 30 Ram . | . . . . . . . . . . . . . . . . . . . . . . . . . . . . Kick 1 | . . . . . . . 1 . . . . . . . . . . . . . . . . . . . . Crush 9 | . . . 4 . . . . . . . . . . . . . . . . 3 2 . . . . . . Escape Stasis 185 | . . . . . . 14 10 43 . 49 . 37 . 16 . . . . . 16 . . . . . . . Rewire 220 | . . . . . . . . . . . . 74 . 146 . . . . . . . . . . . . . Trap . | . . . . . . . . . . . . . . . . . . . . . . . . . . . . Miscellaneous . | . . . . . . . . . . . . . . . . . . . . . . . . . . . . Route ------- -11/Scrapyard -10/Materials (discovered 3 exits: [*Mat] / *Min x2) -10/Mines (discovered 3 exits: [*Mat x2] / *Exi) -10/Exiles -9/Mines (discovered 2 exits: *Mat x2) -8/Materials (discovered 4 exits: *Fac x2 / [*Sto] / Gar) -8/Garrison (discovered 3 exits: *Fac x3) -7/Factory -7/Garrison (discovered 3 exits: *Fac x3) -6/Factory (discovered 3 exits: Low x2 / Gar) -6/Garrison (discovered 3 exits: *Fac x3) -6/Factory (discovered 2 exits: *Fac / Gar) -6/Garrison (discovered 3 exits: *Fac x3) -5/Factory (discovered 5 exits: *Fac / *Upp x2 / *Ext x2) -5/Extension (discovered 3 exits: *Fac x2 / *Cet) -5/Cetus (discovered 2 exits: *Fac / *Arc) -5/Archives (discovered 3 exits: *Fac / *Hub x2) -5/Hub_04(d) (discovered 2 exits: *Fac x2) -4/Factory -4/Waste -4/Factory (discovered 4 exits: *Res / *Upp x2 / *Arm) -4/Armory -4/Lab -3/Research (discovered 2 exits: *Tes x2) -3/Testing -2/Research -2/Quarantine (discovered 2 exits: [*Acc] / *Sec) -2/Section 7 History --------- Turn | Location | Event 8 | -11/Scrapyard | Discovered new exit (range 16) 131 | -11/Scrapyard | Entered Materials 295 | -10/Materials | Discovered new exit (range 12) 327 | -10/Materials | Build established: Mutant 463 | -10/Materials | Discovered new exit (range 10) 579 | -10/Materials | Discovered new exit (range 7) 949 | -10/Materials | Entered Mines 1039 | -10/Mines | Received a Rocket Launcher from a helpful Derelict 1076 | -10/Mines | Found a damaged Exp. Sensor Array with a note attached 1078 | -10/Mines | Found Prototype Device 1198 | -10/Mines | Discovered new exit (range 8) 1470 | -10/Mines | Discovered new exit (range 6) 1471 | -10/Mines | Learned location of Storage (-8) 1573 | -10/Mines | Deemed a non-threat by the Exiles lab entrance 1573 | -10/Mines | Discovered new exit (range 5) 1577 | -10/Mines | Entered Exiles 1605 | -10/Exiles | Met 8R-AWN 1624 | -10/Exiles | Met EX-HEX 1652 | -10/Exiles | Met EX-BIN 1665 | -10/Exiles | Aligned with FarCom system 1667 | -10/Exiles | Given EX-Vault access code 1692 | -10/Exiles | Opened EX-Vault 1715 | -10/Exiles | Warned to stay clear of 0b10 Research branches 1747 | -10/Exiles | Met EX-DEC 1784 | -10/Exiles | Discovered new exit (range 14) 1914 | -10/Exiles | Found Latent Energy Streamer 1917 | -10/Exiles | Found AWS/Gauss 1921 | -10/Exiles | Found Chronowheel 2362 | -10/Exiles | Build established: Hauler-Mutant 2451 | -10/Exiles | Attacked by the Exiles 2576 | -10/Exiles | Destroyed 8R-AWN 2602 | -10/Exiles | Found Prototype Ballistic Gun 2602 | -10/Exiles | Identified 8R-AWN's Boregun 2610 | -10/Exiles | Found Prototype Protection 2610 | -10/Exiles | Identified 8R-AWN's Armor/EX 2694 | -10/Exiles | Found 8R-AWN's Boregun 2701 | -10/Exiles | Found Prototype Processor 3066 | -10/Exiles | Destroyed EX-DEC 3070 | -10/Exiles | Found Deploy-a-Sentry 3071 | -10/Exiles | Destroyed EX-BIN 3093 | -10/Exiles | Destroyed EX-HEX 3219 | -10/Exiles | Learned location of Zion (-6) 3385 | -10/Exiles | Stole four prototypes: Chronowheel, Latent Energy Streamer, AWS/Gauss, Deploy-a-Sentry 3385 | -10/Exiles | Entered Mines 3387 | -9/Mines | Met a Derelict bent on vengeance 3390 | -9/Mines | Core integrity fell below 50% 3505 | -9/Mines | Discovered new exit (range 5) 3580 | -9/Mines | Excavation squad dispatched 3580 | -9/Mines | A large section of the Mines collapsed 3905 | -9/Mines | Discovered new exit (range 12) 3988 | -9/Mines | Entered Materials 3988 | -8/Materials | Evolved 4 slots: Propulsion x1, Utility x2, Weapon x1 4122 | -8/Materials | Destroyed 8 combat bots 4226 | -8/Materials | Discovered new exit (range 8) 4526 | -8/Materials | Discovered new exit (range 15) 4545 | -8/Materials | Build established: Hauler-Tank 4798 | -8/Materials | Discovered new exit (range 10) 4841 | -8/Materials | Garrison activated, responded to threat 4986 | -8/Materials | Lost 5 parts (2n1u2w) 5058 | -8/Materials | Identified exit to Garrison 5058 | -8/Materials | Entered Garrison 5126 | -8/Garrison | Triggered checkpoint 5136 | -8/Garrison | Triggered checkpoint 5149 | -8/Garrison | System corruption reached 10% 5190 | -8/Garrison | Destroyed 7 combat bots 5282 | -8/Garrison | Discovered new exit (range 14) 5512 | -8/Garrison | Discovered new exit (range 9) 5520 | -8/Garrison | Lost 6 parts (1p2n2u1w) 5704 | -8/Garrison | Triggered checkpoint 5796 | -8/Garrison | Discovered new exit (range 14) 5838 | -8/Garrison | Installed Relay Interface Framework 5888 | -8/Garrison | Triggered checkpoint 5915 | -8/Garrison | Garrison Relay disabled 6137 | -8/Garrison | Identified Exp. Sensor Array 6140 | -8/Garrison | Identified Exp. Targeting Computer 6187 | -8/Garrison | Garrison Relay disabled 6455 | -8/Garrison | Entered Factory 6455 | -7/Factory | Accompanied by 1 ally 6455 | -7/Factory | Evolved 2 slots: Utility x2 6467 | -7/Factory | Build established: Scavenger-Mutant 6944 | -7/Factory | Build established: Hauler-Tank 7314 | -7/Factory | Fabricated Hvy. Phase Cannon (x2) 8455 | -7/Factory | First assault squad dispatched 8563 | -7/Factory | System corruption reached 10% 8847 | -7/Factory | Identified exit to Garrison 8852 | -7/Factory | Entered Garrison 8862 | -7/Garrison | Expanded RIF knowledge: Command Fork 9092 | -7/Garrison | Build established: Scavenger-Mutant 9530 | -7/Garrison | Triggered checkpoint 9648 | -7/Garrison | Lost 3 parts (1n2w) 9752 | -7/Garrison | Garrison Relay disabled 9836 | -7/Garrison | Triggered checkpoint 9889 | -7/Garrison | Triggered checkpoint 9912 | -7/Garrison | Destroyed 8 combat bots 9958 | -7/Garrison | Triggered checkpoint 9995 | -7/Garrison | Garrison Relay disabled 10231 | -7/Garrison | Discovered new exit (range 8) 11693 | -7/Garrison | Discovered new exit (range 12) 11714 | -7/Garrison | Garrison Relay disabled 11848 | -7/Garrison | Discovered new exit (range 9) 11859 | -7/Garrison | Build established: Bothacker-Mutant 11878 | -7/Garrison | Triggered checkpoint 12022 | -7/Garrison | Identified exit to Factory 12023 | -7/Garrison | Entered Factory 12023 | -6/Factory | Evolved 2 slots: Propulsion x1, Utility x1 12084 | -6/Factory | Identified exit to Lower Caves 12288 | -6/Factory | Spotted B-75 Beast 12292 | -6/Factory | Identified exit to Garrison 12300 | -6/Factory | Entered Garrison 12306 | -6/Garrison | Expanded RIF knowledge: Alert ID Control 12458 | -6/Garrison | Triggered checkpoint 12458 | -6/Garrison | Triggered checkpoint 12556 | -6/Garrison | Triggered checkpoint 12942 | -6/Garrison | Triggered checkpoint 12963 | -6/Garrison | Garrison Relay disabled 13037 | -6/Garrison | Phase Generator disabled 13181 | -6/Garrison | Garrison Relay disabled 13208 | -6/Garrison | Discovered new exit (range 8) 13296 | -6/Garrison | Triggered checkpoint 13310 | -6/Garrison | Garrison Relay disabled 13386 | -6/Garrison | Discovered new exit (range 8) 13456 | -6/Garrison | Discovered new exit (range 14) 13468 | -6/Garrison | Identified exit to Factory 13469 | -6/Garrison | Entered Factory 14025 | -6/Factory | Discovered new exit (range 12) 14058 | -6/Factory | Identified exit to Factory 14322 | -6/Factory | Identified exit to Garrison 14339 | -6/Factory | Entered Garrison 14339 | -6/Garrison | Accompanied by 4 allies 14398 | -6/Garrison | Triggered checkpoint 14413 | -6/Garrison | Spotted B-75 Beast 14416 | -6/Garrison | Triggered checkpoint 14454 | -6/Garrison | Destroyed B-75 Beast 14467 | -6/Garrison | Triggered checkpoint 14535 | -6/Garrison | Lost 4 parts (1n1u2w) 14574 | -6/Garrison | Triggered checkpoint 14680 | -6/Garrison | Discovered exit to Factory (range 8) 14813 | -6/Garrison | Discovered exit to Factory (range 9) 14907 | -6/Garrison | Build established: Scavenger-Gunner 14984 | -6/Garrison | Triggered checkpoint 15094 | -6/Garrison | Garrison Relay disabled 15138 | -6/Garrison | Triggered checkpoint 15166 | -6/Garrison | Discovered exit to Factory (range 9) 15198 | -6/Garrison | Expanded RIF knowledge: Threat Obfuscation 15236 | -6/Garrison | Triggered checkpoint 15398 | -6/Garrison | Garrison Relay disabled 15516 | -6/Garrison | Triggered checkpoint 15773 | -6/Garrison | Garrison Relay disabled 15968 | -6/Garrison | Build established: Botlord-Mutant 16736 | -6/Garrison | Triggered checkpoint 16773 | -6/Garrison | Garrison Relay disabled 16818 | -6/Garrison | Entered Factory 16818 | -5/Factory | Accompanied by 13 allies 16818 | -5/Factory | Evolved 2 slots: Utility x2 17132 | -5/Factory | Discovered new exit (range 55) 17229 | -5/Factory | Garrison activated, responded to threat 17231 | -5/Factory | Identified exit to Upper Caves 17231 | -5/Factory | Identified exit to Extension 17583 | -5/Factory | System corruption reached 10% 17636 | -5/Factory | Lost 3 parts (1n2u) 17780 | -5/Factory | Discovered new exit (range 15) 17819 | -5/Factory | Identified exit to Factory 18116 | -5/Factory | Entered Extension 18116 | -5/Extension | Accompanied by 3 allies 18139 | -5/Extension | Build established: Bothacker-Mutant 18295 | -5/Extension | Rescued a captive Derelict 18383 | -5/Extension | Energy Cycler disabled 18383 | -5/Extension | Rescued a captive Derelict 18383 | -5/Extension | Rescued a captive Derelict 18383 | -5/Extension | Rescued a captive Derelict 18384 | -5/Extension | Rescued a captive Derelict 18385 | -5/Extension | Rescued a captive Derelict 18386 | -5/Extension | Rescued a captive Derelict 18388 | -5/Extension | Rescued a captive Derelict 18714 | -5/Extension | Spotted B-75 Beast 18725 | -5/Extension | Extracted ID and sensor layout for unrecognized location from A7's data core 18725 | -5/Extension | Spotted B-75 Beast 18729 | -5/Extension | Discovered exit to Factory (range 15) 18737 | -5/Extension | Hijacked Beast 6a control node with streamctrl_high 18749 | -5/Extension | Destroyed B-75 Beast 18755 | -5/Extension | Destroyed Beast 6a 19187 | -5/Extension | Discovered exit to Factory (range 10) 19189 | -5/Extension | Discovered new exit (range 6) 19194 | -5/Extension | Identified exit to Cetus 19229 | -5/Extension | Entered Cetus 19229 | -5/Cetus | Accompanied by 12 allies 19249 | -5/Cetus | Spotted Cetus Guard 19249 | -5/Cetus | Spotted Cetus Guard 19253 | -5/Cetus | Spotted Cetus Guard 19254 | -5/Cetus | Spotted Cetus Guard 19257 | -5/Cetus | Allies destroyed Cetus Guard 19257 | -5/Cetus | Allies destroyed Cetus Guard 19266 | -5/Cetus | Allies destroyed Cetus Guard 19268 | -5/Cetus | Allies destroyed Cetus Guard 19370 | -5/Cetus | Discovered new exit (range 16) 19394 | -5/Cetus | Spotted Cetus Guard 19395 | -5/Cetus | Spotted Cetus Guard 19397 | -5/Cetus | Destroyed Cetus Guard 19398 | -5/Cetus | Spotted Cetus Guard 19398 | -5/Cetus | Spotted Cetus Guard 19409 | -5/Cetus | Destroyed Cetus Guard 19416 | -5/Cetus | Destroyed Cetus Guard 19421 | -5/Cetus | Destroyed Cetus Guard 19436 | -5/Cetus | Discovered exit to Factory (range 15) 19442 | -5/Cetus | Met Revision 17 19547 | -5/Cetus | Destroyed 7 combat bots 19550 | -5/Cetus | Identified exit to Archives 19552 | -5/Cetus | Entered Archives 19633 | -5/Archives | Discovered exit to Factory (range 15) 19723 | -5/Archives | Discovered new exit (range 16) 19860 | -5/Archives | Discovered new exit (range 16) 19925 | -5/Archives | Build established: Scavenger-Mutant 20796 | -5/Archives | Identified exit to Hub_04(d) 20799 | -5/Archives | Entered Hub_04(d) 20953 | -5/Hub_04(d) | Build established: Scavenger-Skirmisher 21169 | -5/Hub_04(d) | Discovered exit to Factory (range 13) 21445 | -5/Hub_04(d) | Build established: Scavenger-Tank 21546 | -5/Hub_04(d) | Discovered exit to Factory (range 8) 21593 | -5/Hub_04(d) | Entered Factory 21593 | -4/Factory | Evolved 2 slots: Utility x2 22495 | -4/Factory | Sucked down chute 22495 | -4/Factory | Entered Waste 22496 | -4/Waste | Met a frightened Derelict 22508 | -4/Waste | Spotted C-40 Crusher 22510 | -4/Waste | EMP discharged 22510 | -4/Waste | System corruption reached 10% 22515 | -4/Waste | Destroyed C-40 Crusher 22518 | -4/Waste | Spotted C-40 Crusher 22528 | -4/Waste | Allies destroyed C-40 Crusher 22530 | -4/Waste | Spotted C-40 Crusher 22535 | -4/Waste | Destroyed C-40 Crusher 22540 | -4/Waste | Destroyed C-40 Crusher 22554 | -4/Waste | Found Damper Plating 22588 | -4/Waste | Spotted C-40 Crusher 22605 | -4/Waste | Destroyed C-40 Crusher 22610 | -4/Waste | EMP discharged 22611 | -4/Waste | Spotted C-40 Crusher 22619 | -4/Waste | Destroyed C-40 Crusher 22631 | -4/Waste | Found Damper Plating 22639 | -4/Waste | Discovered new exit (range 15) 22706 | -4/Waste | Identified exit to Factory 22708 | -4/Waste | Entered Factory 22731 | -4/Factory | Identified exit to Upper Caves 22731 | -4/Factory | Identified exit to Armory 22862 | -4/Factory | Lost 4 parts (2n1u1w) 22943 | -4/Factory | Spotted B-86 Titan 23058 | -4/Factory | Spotted B-86 Titan 23323 | -4/Factory | Build established: Scavenger-Mutant 23690 | -4/Factory | Discovered new exit (range 16) 23931 | -4/Factory | Repaired Adv. Weapon Cycler 24083 | -4/Factory | Entered Armory 24640 | -4/Armory | Spotted B-86 Titan 24733 | -4/Armory | Energy Cycler disabled 24795 | -4/Armory | Destroyed 9 combat bots 25173 | -4/Armory | Fabricated Cmb. Linear Gravjet (x2) 25277 | -4/Armory | Discovered new exit (range 16) 25362 | -4/Armory | Entered Lab 25381 | -4/Lab | Discovered new exit (range 9) 25459 | -4/Lab | Hidden lab's door opened automatically 25459 | -4/Lab | Sensor layout match revealed 25460 | -4/Lab | Gained access to the hidden lab's interior 25518 | -4/Lab | Found Prototype Special Weapon 25518 | -4/Lab | Identified Gui. Remote Datajack 25535 | -4/Lab | Unable to decrypt terminal 25544 | -4/Lab | Found Prototype Energy Cannon 25544 | -4/Lab | Identified Warp Cannon 25548 | -4/Lab | Found Prototype Energy Cannon 25548 | -4/Lab | Identified Potential Cannon 25552 | -4/Lab | Found Prototype Protection 25552 | -4/Lab | Identified Exp. Powered Armor 25674 | -4/Lab | Found Alien Artifact 25690 | -4/Lab | Found Alien Artifact 25701 | -4/Lab | Found Alien Artifact 25715 | -4/Lab | Found Alien Artifact 25734 | -4/Lab | Found Prototype Hackware 25923 | -4/Lab | Identified Deep Network Scanner 26000 | -4/Lab | Entered Research 26000 | -3/Research | Evolved 2 slots: Power x1, Propulsion x1 26075 | -3/Research | Discovered new exit (range 6) 26110 | -3/Research | Build established: Hauler-Mutant 26200 | -3/Research | Revision forces began assault on 0b10 26203 | -3/Research | Fabricated Cmb. Linear Gravjet (x2) 26246 | -3/Research | Met up with Revision 17++ 26336 | -3/Research | Identified Core Reset Matrix 26336 | -3/Research | Identified Core Expander 26336 | -3/Research | Installed Core Expander, added new Power slot 26338 | -3/Research | Identified Transdimensional Reconstructor 26338 | -3/Research | Warped through subspace 26339 | -3/Research | Identified Integrated Reactor 26339 | -3/Research | Installed Integrated Reactor, increased core energy generation (+10) 26442 | -3/Research | Found Unknown Launcher 26442 | -3/Research | Identified Fusion Bomb Launcher 26519 | -3/Research | Identified exit to Testing 26661 | -3/Research | Entered Testing 26762 | -3/Testing | Spotted PY-J4B0O8SHHX 26773 | -3/Testing | Found Prototype Device 26773 | -3/Testing | Identified AEGIS Remote Shield 26845 | -3/Testing | Found Prototype Launcher 26845 | -3/Testing | Identified Tactical Quantum Warhead 26869 | -3/Testing | Spotted Striker 26882 | -3/Testing | Spotted PP-QQJW1UWK4Z 26907 | -3/Testing | Destroyed PP-QQJW1UWK4Z 26911 | -3/Testing | Found Prototype Reactor 26911 | -3/Testing | Identified Zero-point Reactor 26924 | -3/Testing | Found Prototype Energy Gun 26924 | -3/Testing | Identified Enh. Gamma Rifle 26930 | -3/Testing | Found Prototype Device 26930 | -3/Testing | Identified Exp. Weapon Cycler 26996 | -3/Testing | Spotted Striker 27166 | -3/Testing | Discovered new exit (range 8) 27166 | -3/Testing | Protovariant out of control (PY-J4B0O8SHHX) 27166 | -3/Testing | Unleashed a protovariant (PY-J4B0O8SHHX) 27219 | -3/Testing | Entered Research 27219 | -2/Research | Evolved 2 slots: Utility x2 27407 | -2/Research | Found Prototype Launcher 27407 | -2/Research | Identified Mni. Smartbomb Launcher 27410 | -2/Research | Found Mni. Smartbomb Launcher 27637 | -2/Research | Discovered new exit (range 9) 27640 | -2/Research | Identified exit to Quarantine 27640 | -2/Research | Entered Quarantine 27835 | -2/Quarantine | Found Alien Artifact 27835 | -2/Quarantine | Identified Phase Armor 28080 | -2/Quarantine | Found Alien Energy Cannon 28102 | -2/Quarantine | Found Alien Slashing Weapon 28102 | -2/Quarantine | Identified Sigix Broadsword 28117 | -2/Quarantine | Found Alien Artifact 28117 | -2/Quarantine | Identified Stasis Generator 28135 | -2/Quarantine | Discovered new exit (range 9) 28144 | -2/Quarantine | Identified Core Cannon 28202 | -2/Quarantine | Found Alien Artifact 28202 | -2/Quarantine | Identified Subatomic Replicator 28276 | -2/Quarantine | Spotted Fortress 28293 | -2/Quarantine | Build established: Scavenger-Mutant 28313 | -2/Quarantine | Discovered new exit (range 5) 28314 | -2/Quarantine | Identified exit to Section 7 28614 | -2/Quarantine | Entered Section 7 28614 | -2/Section 7 | Accompanied by 1 ally 28829 | -2/Section 7 | Scanned by Researcher 28896 | -2/Section 7 | Spotted B-90 Cyclops 28913 | -2/Section 7 | Found Alien Artifact 28913 | -2/Section 7 | Identified Integrated Dissipator 28913 | -2/Section 7 | Installed Integrated Dissipator, increased core heat dissipation (+20) 28999 | -2/Section 7 | Spotted S7 Guard 29018 | -2/Section 7 | Found Alien Artifact 29018 | -2/Section 7 | Identified Integrated Singularity Reactor 29018 | -2/Section 7 | Installed Integrated Singularity Reactor, increased core energy generation (+20) 29152 | -2/Section 7 | First assault squad dispatched 29175 | -2/Section 7 | Intercept squad dispatched 29179 | -2/Section 7 | Spotted Tracker 29179 | -2/Section 7 | Spotted Tracker 29189 | -2/Section 7 | Spotted Combat Programmer 29206 | -2/Section 7 | Used Subatomic Replicator on Chronowheel, triggered subspace vortex 29206 | -2/Section 7 | Destroyed Combat Programmer 29206 | -2/Section 7 | Destroyed Tracker 29227 | -2/Section 7 | Destroyed 7 combat bots 29243 | -2/Section 7 | Destroyed Combat Programmer 29250 | -2/Section 7 | High security lockdown imminent 29286 | -2/Section 7 | Lost 18 parts (4p4n5u5w) 29297 | -2/Section 7 | Core integrity fell below 50% 29306 | -2/Section 7 | DAS Turret deployed 29326 | -2/Section 7 | Released all parts (12) 29330 | -2/Section 7 | High security lockdown engaged 29330 | -2/Section 7 | Core integrity fell below 20% 29354 | -2/Section 7 | Lost 4 parts (1n1u2w) 29374 | -2/Section 7 | Destroyed by G-73 Enforcer with Phase Gun Last Messages --------------- 29329_ Penetrated by Slug. 29330_ ALERT: Lockdown in effect, collecting threat data. 29330_ Acquired Exp. Powered Armor. 29331_ Penetrated by Slug. 29334_ Slug penetrates G-73 Enforcer. 29334_ Slug penetrates Earth. 29336_ The unstable cave ceiling collapses. 29344_ Acquired 30 matter. 29345_ Acquired 96 matter. 29350_ ALERT: Assault forces dispatched. 29356_ System corrupted: Matter fused (-8). 29374_ C-30 ARC bursts open, deploying its payload. 29374_ G-73 Enforcer unfolds itself. 29374_ B-74 Champion unfolds itself. 29374_ I-47 Archangel unfolds itself. 29374_ C-30 ARC bursts open, deploying its payload. 29374_ G-73 Enforcer unfolds itself. 29374_ L-61 Swordsman unfolds itself. 29374_ G-73 Enforcer unfolds itself. 29374_ M-36 Artificer unfolds itself. Map ----- +----------------------------------------------------+ | ?????????????# # # """"""??? #????? | | ?????????????# ! # # """"""" #????? | | ?????????????# # # ""#????? | | ?????????????# ! + # """"""" ""#????? | | ?????????????###########+## ! # """"""" S"#????? | | ???????????????????????# ## + """"""" """#????? | | ???????????????????????#!## # """#????? | | ???????????????????????# ## # * """#????? | | ???????????????????????# ## # % #????? | | ???????????????????????# ## #####+### ###????? | | ?????????????###########+## # # ???????? | | ?????????????# # =############ | | ?????????????# """""" # [%% =[[!%!=[! | | ?????????????# """""""" # %!############ | | ?????????????# """""" ######## =## ???????? | | ?????????????# #????# # # ????????? | | ?????????????# ######## # #??????? | | ?????????????# # #####??????? | | ?????????????# # ##?????????? | | ?????????????# === # #??????????? | | ?????????????# === # #??????????? | | ?????????????# ==! # ########??????????? | | ?????????????# # #?????????????????? | | ?????????????#########g#### #?????????????????? | | ????????????????# mg%lgi #####?????######### | | ????????????????# lbg@ ? | | ????????????????# b ########????# | | ????????????????# #???????????# | | ????????????????#####+##########???????????# | | ??????????????????? ??????????????????#####/## | | ?????????????????""" """ ????????????????# | | ???????????????# """ """ ??????????????# * "" | | ???????????????# """ """ #?????????????# " | | ???????????????# """ """ ]#?????????????# /] "" | | ?????????????????""" """ #?????????????# ] | | ?????????????????? ???? #?????????????# | | ?????????????????? ????? #?????????????# | | ?????????????????? ?????????????????????# | | ?????????????????? ??????????????????????######## | | ?????????????????? ?????????????????????????????? | | ?????????????????? ?????????????????????????????? | | ?????????????????????????????????????????????????? | | | | | | | | | | | | | | | | | +----------------------------------------------------+ Best States ------------- Heat Dissipation 100 Energy Generation 93 Energy Capacity 1720 Matter Stores 300 Matter Capacity 300 Sight Range 16 Robot Scan Range 30 Terrain Scan Density 10 Jamming Range 16 Additional Mass Support 36 Armor Coverage 2400 Resistance: KI 30 Resistance: EM 90 Utility Shielding 66 Weapon Cycling 30 Evasion (%) 56 Targeting Accuracy 8 Armor Integrity Analysis 66 Recoil Reduction 4 Matter Filtering 50 Offensive Hacking 37 Relay Coupler Types 58 Relay Coupler Value 3 Item Schematics ----------------- Lrg. Storage Unit | -10/Materials | Hacked Cmb. Linear Gravjet | -4/Factory | Scanalyzed Adv. Weapon Cycler | -4/Factory | Scanalyzed Robot Schematics ------------------ None Fabricated ------------ Hvy. Phase Cannon | x2 | -7/Factory | Preloaded Cmb. Linear Gravjet | x2 | -4/Armory Cmb. Linear Gravjet | x2 | -3/Research Alien Tech Used ----------------- Core Expander Transdimensional Reconstructor Integrated Reactor Phase Armor Sigix Broadsword Stasis Generator Subatomic Replicator Integrated Dissipator Integrated Singularity Reactor Core Cannon Achievements -------------- Revolutionary Research Challenges ------------ None Game ------ Seed PhaseGammaBeamcaster Manual? 0 Play Time 05:33:13 Cumulative 176.1 hours Start 2020.11.21 @ 12:27:43 End 2020.11.23 @ 11:48:12 Sessions 11 Manual Loads 0 Difficulty Rogue Special Mode Halloween2020/ForbiddenLore Game No. 56 Rogue 41 Adventurer 15 Explorer 0 Win Type - Total 5 Types 2/0/1/1/1/0/0/0/0 Lore% 80 Gallery% 80 Achievement% 68 Wizard Run 0 Options --------- ASCII 0 Keyboard 0 Movement Numpad Keybinds 0 Fullscreen 1 Font 18/SmallcapsGlow Map View 76x50 Tactical HUD 1 Map Filters NONE Filters NONE Steam 1 RUN: 944e5dcf-bbcf-4da4-97a4-cb3a5aa67722